[Event "December 5 Early 2023"]
[Site "https://www.chess.com"]
[Date "2023.12.05"]
[Round "4"]
[White "Yurasova, Daria"]
[Black "Osmonbekov, Talaibek"]
[Result "1-0"]
[Board "187"]
[TimeControl "180+1"]
[WhiteFideId "34146919"]
[BlackFideId "2017253"]
[WhiteElo "2449"]
[BlackElo "2199"]
[WhiteTeam "RUS"]
[BlackTeam "USA"]
[WhiteClock "0:00:39"]
[BlackClock "0:00:00"]

1. d4 {[%clk 0:03:00]}  e6 {[%clk 0:02:57]} 2. e4 {[%clk 0:02:59]}  d5 {[%clk 0:02:55]} 3. Bd3 {[%clk 0:02:52]}  dxe4 {[%clk 0:02:51]} 4. Bxe4 {[%clk 0:02:53]}  Nf6 {[%clk 0:02:52]} 5. Bf3 {[%clk 0:02:51]}  c5 {[%clk 0:02:52]} 6. c3 {[%clk 0:02:50]}  Nc6 {[%clk 0:02:50]} 7. Ne2 {[%clk 0:02:50]}  cxd4 {[%clk 0:02:34]} 8. cxd4 {[%clk 0:02:50]}  Bb4+ {[%clk 0:02:22]} 9. Bd2 {[%clk 0:02:45]}  O-O {[%clk 0:02:15]} 10. O-O {[%clk 0:02:41]}  Bxd2 {[%clk 0:02:14]} 11. Qxd2 {[%clk 0:02:37]}  Ne7 {[%clk 0:01:58]} 12. Nbc3 {[%clk 0:02:17]}  Ned5 {[%clk 0:01:55]} 13. Nxd5 {[%clk 0:02:14]}  Nxd5 {[%clk 0:01:54]} 14. Nc3 {[%clk 0:02:15]}  b6 {[%clk 0:01:42]} 15. Nxd5 {[%clk 0:02:13]}  exd5 {[%clk 0:01:41]} 16. Rac1 {[%clk 0:02:13]}  Be6 {[%clk 0:01:37]} 17. Rc3 {[%clk 0:01:52]}  Qd7 {[%clk 0:01:37]} 18. Rfc1 {[%clk 0:01:52]}  Rac8 {[%clk 0:01:36]} 19. Qc2 {[%clk 0:01:49]}  Bf5 {[%clk 0:00:54]} 20. Qb3 {[%clk 0:01:41]}  Rxc3 {[%clk 0:00:46]} 21. Qxc3 {[%clk 0:01:38]}  h6 {[%clk 0:00:42]} 22. Qc7 {[%clk 0:01:33]}  Qa4 {[%clk 0:00:30]} 23. Qe5 {[%clk 0:01:24]}  Be6 {[%clk 0:00:12]} 24. Bxd5 {[%clk 0:01:24]}  Bxd5 {[%clk 0:00:09]} 25. Qxd5 {[%clk 0:01:24]}  Re8 {[%clk 0:00:03]} 26. h3 {[%clk 0:01:23]}  Qb4 {[%clk 0:00:03]} 27. Rc7 {[%clk 0:01:16]}  Qe1+ {[%clk 0:00:02]} 28. Kh2 {[%clk 0:01:16]}  Qxf2 {[%clk 0:00:03]} 29. Qd6 {[%clk 0:01:03]}  a5 {[%clk 0:00:02]} 30. Qg3 {[%clk 0:00:55]}  Qxd4 {[%clk 0:00:01]} 31. Rc2 {[%clk 0:00:51]}  Qe5 {[%clk 0:00:01]} 32. Qxe5 {[%clk 0:00:46]}  Rxe5 {[%clk 0:00:02]} 33. Kg3 {[%clk 0:00:47]}  g5 {[%clk 0:00:01]} 34. Kf3 {[%clk 0:00:47]}  Kg7 {[%clk 0:00:01]} 35. g4 {[%clk 0:00:47]}  f5 {[%clk 0:00:01]} 36. gxf5 {[%clk 0:00:44]}  Rxf5+ {[%clk 0:00:01]} 37. Kg3 {[%clk 0:00:43]}  h5 {[%clk 0:00:00]} 38. Rc6 {[%clk 0:00:39]} 1-0

[Event "December 5 Early 2023"]
[Site "https://www.chess.com"]
[Date "2023.12.05"]
[Round "4"]
[White "Vila Dupla, Aurelio"]
[Black "Topalov, Aleksandar"]
[Result "1-0"]
[Board "190"]
[TimeControl "180+1"]
[WhiteFideId "2203383"]
[BlackFideId "925659"]
[WhiteElo "2183"]
[BlackElo "2443"]
[WhiteTeam "ESP"]
[BlackTeam "SRB"]
[WhiteClock "0:01:43"]
[BlackClock "0:02:03"]

1. Nf3 {[%clk 0:03:00]}  Nf6 {[%clk 0:02:59]} 2. d4 {[%clk 0:03:00]}  g6 {[%clk 0:02:59]} 3. g3 {[%clk 0:02:59]}  Bg7 {[%clk 0:03:00]} 4. Bg2 {[%clk 0:03:00]}  O-O {[%clk 0:03:00]} 5. O-O {[%clk 0:03:00]}  c5 {[%clk 0:02:58]} 6. c4 {[%clk 0:03:00]}  Na6 {[%clk 0:02:56]} 7. b3 {[%clk 0:02:58]}  d6 {[%clk 0:02:56]} 8. Bb2 {[%clk 0:02:57]}  Rb8 {[%clk 0:02:56]} 9. Nc3 {[%clk 0:02:46]}  cxd4 {[%clk 0:02:54]} 10. Nxd4 {[%clk 0:02:45]}  Nc5 {[%clk 0:02:54]} 11. h3 {[%clk 0:02:41]}  Bd7 {[%clk 0:02:53]} 12. Qd2 {[%clk 0:02:39]}  a6 {[%clk 0:02:53]} 13. e3 {[%clk 0:02:20]}  b5 {[%clk 0:02:52]} 14. cxb5 {[%clk 0:02:21]}  axb5 {[%clk 0:02:52]} 15. b4 {[%clk 0:02:21]}  Ne6 {[%clk 0:02:50]} 16. Nd5 {[%clk 0:02:11]}  Nxd5 {[%clk 0:02:41]} 17. Bxd5 {[%clk 0:02:07]}  Nxd4 {[%clk 0:02:37]} 18. Bxd4 {[%clk 0:02:06]}  Bxd4 {[%clk 0:02:37]} 19. Qxd4 {[%clk 0:02:07]}  Bxh3 {[%clk 0:02:35]} 20. Rfc1 {[%clk 0:02:04]}  Bd7 {[%clk 0:02:30]} 21. Qa7 {[%clk 0:01:47]}  e6 {[%clk 0:02:23]} 22. Bb7 {[%clk 0:01:46]}  Bc8 {[%clk 0:02:03]} 23. Qxb8 {[%clk 0:01:43]} 1-0

[Event "December 5 Early 2023"]
[Site "https://www.chess.com"]
[Date "2023.12.05"]
[Round "4"]
[White "Michalski, Olaf"]
[Black "Liu, Casper"]
[Result "0-1"]
[Board "191"]
[TimeControl "180+1"]
[WhiteFideId "1106740"]
[BlackFideId "1454153"]
[WhiteElo "2182"]
[BlackElo "2439"]
[WhiteTeam "POL"]
[BlackTeam "DEN"]
[WhiteClock "0:00:00"]
[BlackClock "0:01:18"]

1. d4 {[%clk 0:02:50]}  Nf6 {[%clk 0:02:59]} 2. c4 {[%clk 0:02:50]}  g6 {[%clk 0:03:00]} 3. Nc3 {[%clk 0:02:50]}  Bg7 {[%clk 0:03:00]} 4. e4 {[%clk 0:02:50]}  O-O {[%clk 0:03:01]} 5. Nf3 {[%clk 0:02:50]}  d6 {[%clk 0:03:01]} 6. Be2 {[%clk 0:02:50]}  Bg4 {[%clk 0:03:02]} 7. O-O {[%clk 0:02:49]}  Nc6 {[%clk 0:03:01]} 8. d5 {[%clk 0:02:47]}  Bxf3 {[%clk 0:03:00]} 9. Bxf3 {[%clk 0:02:48]}  Ne5 {[%clk 0:03:00]} 10. Be2 {[%clk 0:02:48]}  e6 {[%clk 0:02:59]} 11. f4 {[%clk 0:02:36]}  Ned7 {[%clk 0:03:00]} 12. dxe6 {[%clk 0:02:12]}  fxe6 {[%clk 0:03:01]} 13. Be3 {[%clk 0:02:09]}  Kh8 {[%clk 0:02:58]} 14. Qd2 {[%clk 0:01:59]}  Qe7 {[%clk 0:02:57]} 15. Rad1 {[%clk 0:01:57]}  a6 {[%clk 0:02:57]} 16. Bf3 {[%clk 0:01:45]}  Rf7 {[%clk 0:02:51]} 17. b4 {[%clk 0:01:22]}  e5 {[%clk 0:02:38]} 18. f5 {[%clk 0:00:52]}  gxf5 {[%clk 0:02:39]} 19. exf5 {[%clk 0:00:52]}  e4 {[%clk 0:02:39]} 20. Be2 {[%clk 0:00:50]}  Ne5 {[%clk 0:02:39]} 21. Nd5 {[%clk 0:00:45]}  Nxd5 {[%clk 0:02:30]} 22. Qxd5 {[%clk 0:00:45]}  Qh4 {[%clk 0:02:19]} 23. Rf4 {[%clk 0:00:31]}  Qf6 {[%clk 0:02:04]} 24. Rxe4 {[%clk 0:00:21]}  Qxf5 {[%clk 0:02:00]} 25. Rf1 {[%clk 0:00:21]}  Qd7 {[%clk 0:01:50]} 26. Rxf7 {[%clk 0:00:19]}  Qxf7 {[%clk 0:01:48]} 27. Qxf7 {[%clk 0:00:16]}  Nxf7 {[%clk 0:01:48]} 28. Re7 {[%clk 0:00:16]}  Kg8 {[%clk 0:01:42]} 29. Rxc7 {[%clk 0:00:16]}  Re8 {[%clk 0:01:43]} 30. Kf2 {[%clk 0:00:15]}  Ne5 {[%clk 0:01:42]} 31. Rxb7 {[%clk 0:00:14]}  Rf8+ {[%clk 0:01:38]} 32. Bf3 {[%clk 0:00:14]}  Re8 {[%clk 0:01:38]} 33. Bd5+ {[%clk 0:00:14]}  Kh8 {[%clk 0:01:37]} 34. h3 {[%clk 0:00:14]}  Nd3+ {[%clk 0:01:32]} 35. Kf3 {[%clk 0:00:13]}  Ne1+ {[%clk 0:01:29]} 36. Kf2 {[%clk 0:00:10]}  Nd3+ {[%clk 0:01:29]} 37. Ke2 {[%clk 0:00:08]}  Nc1+ {[%clk 0:01:24]} 38. Kd2 {[%clk 0:00:06]}  Nxa2 {[%clk 0:01:25]} 39. Bf4 {[%clk 0:00:05]}  Bc3+ {[%clk 0:01:24]} 40. Kd3 {[%clk 0:00:03]}  Bxb4 {[%clk 0:01:18]} 41. Be3 {[%clk 0:00:00]}  Bc3 {[%clk 0:01:18]} 0-1

[Event "December 5 Early 2023"]
[Site "https://www.chess.com"]
[Date "2023.12.05"]
[Round "4"]
[White "Travadon, Loic"]
[Black "Filipovic, Slobodan J"]
[Result "0-1"]
[Board "192"]
[TimeControl "180+1"]
[WhiteFideId "26092131"]
[BlackFideId "939633"]
[WhiteElo "2164"]
[BlackElo "2438"]
[WhiteTeam "FRA"]
[BlackTeam "SRB"]
[WhiteClock "0:00:48"]
[BlackClock "0:00:30"]

1. e4 {[%clk 0:03:00]}  c5 {[%clk 0:02:59]} 2. Nf3 {[%clk 0:02:58]}  Nc6 {[%clk 0:03:00]} 3. Nc3 {[%clk 0:02:57]}  Nf6 {[%clk 0:02:59]} 4. Bb5 {[%clk 0:02:56]}  Qc7 {[%clk 0:02:57]} 5. O-O {[%clk 0:02:55]}  e6 {[%clk 0:02:54]} 6. Re1 {[%clk 0:02:51]}  d6 {[%clk 0:02:51]} 7. d4 {[%clk 0:02:45]}  cxd4 {[%clk 0:02:50]} 8. Nxd4 {[%clk 0:02:46]}  Bd7 {[%clk 0:02:49]} 9. f4 {[%clk 0:02:39]}  Be7 {[%clk 0:02:43]} 10. Bxc6 {[%clk 0:02:37]}  Bxc6 {[%clk 0:02:43]} 11. e5 {[%clk 0:02:30]}  dxe5 {[%clk 0:02:35]} 12. fxe5 {[%clk 0:02:31]}  Nd7 {[%clk 0:02:35]} 13. Nxc6 {[%clk 0:02:23]}  Qxc6 {[%clk 0:02:18]} 14. Kh1 {[%clk 0:02:20]}  Nc5 {[%clk 0:02:11]} 15. Bf4 {[%clk 0:02:15]}  O-O {[%clk 0:02:06]} 16. Qe2 {[%clk 0:02:15]}  Rac8 {[%clk 0:01:57]} 17. Rac1 {[%clk 0:02:14]}  Na4 {[%clk 0:01:54]} 18. Ne4 {[%clk 0:02:08]}  Nxb2 {[%clk 0:01:50]} 19. Qg4 {[%clk 0:02:01]}  Kh8 {[%clk 0:01:42]} 20. Re3 {[%clk 0:01:53]}  f5 {[%clk 0:01:31]} 21. exf6 {[%clk 0:01:52]}  Bxf6 {[%clk 0:01:08]} 22. Nxf6 {[%clk 0:01:52]}  Rxf6 {[%clk 0:01:08]} 23. Be5 {[%clk 0:01:49]}  Rg6 {[%clk 0:01:07]} 24. Qh3 {[%clk 0:01:46]}  Nc4 {[%clk 0:00:58]} 25. Rc3 {[%clk 0:01:46]}  b5 {[%clk 0:00:55]} 26. Rf1 {[%clk 0:01:44]}  Qe4 {[%clk 0:00:49]} 27. Rcf3 {[%clk 0:01:34]}  h6 {[%clk 0:00:41]} 28. Ba1 {[%clk 0:01:05]}  Kh7 {[%clk 0:00:40]} 29. Rf7 {[%clk 0:01:03]}  Ne3 {[%clk 0:00:33]} 30. Re1 {[%clk 0:00:47]}  Qxg2+ {[%clk 0:00:31]} 31. Qxg2 {[%clk 0:00:46]}  Nxg2 {[%clk 0:00:32]} 32. Rg1 {[%clk 0:00:46]}  Rxc2 {[%clk 0:00:31]} 33. Rxg7+ {[%clk 0:00:46]}  Rxg7 {[%clk 0:00:30]} 34. Bxg7 {[%clk 0:00:47]}  Kxg7 {[%clk 0:00:30]} 35. Rxg2+ {[%clk 0:00:48]}  Rxg2 {[%clk 0:00:30]} 36. Kxg2 {[%clk 0:00:48]}  a5 {[%clk 0:00:30]} 0-1

[Event "December 5 Early 2023"]
[Site "https://www.chess.com"]
[Date "2023.12.05"]
[Round "4"]
[White "Ghosh, Chanchal Kumer"]
[Black "Muetsch, Annmarie"]
[Result "0-1"]
[Board "193"]
[TimeControl "180+1"]
[WhiteFideId "10201858"]
[BlackFideId "12971367"]
[WhiteElo "2069"]
[BlackElo "2437"]
[WhiteTeam "BAN"]
[BlackTeam "GER"]
[WhiteClock "0:00:02"]
[BlackClock "0:00:02"]

1. e4 {[%clk 0:03:00]}  c6 {[%clk 0:02:57]} 2. Nf3 {[%clk 0:03:01]}  d5 {[%clk 0:02:56]} 3. Nc3 {[%clk 0:03:01]}  dxe4 {[%clk 0:02:55]} 4. Nxe4 {[%clk 0:03:01]}  Nf6 {[%clk 0:02:52]} 5. Ng3 {[%clk 0:03:01]}  e6 {[%clk 0:02:39]} 6. h3 {[%clk 0:02:59]}  Bd6 {[%clk 0:02:36]} 7. Ne2 {[%clk 0:02:55]}  O-O {[%clk 0:02:36]} 8. d4 {[%clk 0:02:55]}  c5 {[%clk 0:02:29]} 9. c3 {[%clk 0:02:44]}  Nc6 {[%clk 0:02:28]} 10. Bg5 {[%clk 0:02:42]}  h6 {[%clk 0:02:21]} 11. Bh4 {[%clk 0:02:41]}  cxd4 {[%clk 0:02:14]} 12. Nexd4 {[%clk 0:02:39]}  Ne5 {[%clk 0:02:12]} 13. Be2 {[%clk 0:02:32]}  Ng6 {[%clk 0:02:10]} 14. O-O {[%clk 0:01:52]}  Nxh4 {[%clk 0:02:05]} 15. Nxh4 {[%clk 0:01:53]}  Nd5 {[%clk 0:01:58]} 16. Nhf3 {[%clk 0:01:50]}  Qf6 {[%clk 0:01:55]} 17. Bd3 {[%clk 0:01:41]}  Nf4 {[%clk 0:01:50]} 18. Be4 {[%clk 0:01:38]}  a6 {[%clk 0:01:37]} 19. Ne2 {[%clk 0:01:33]}  Bc7 {[%clk 0:01:32]} 20. Nxf4 {[%clk 0:01:29]}  Qxf4 {[%clk 0:01:31]} 21. Qe2 {[%clk 0:01:26]}  Bd7 {[%clk 0:01:21]} 22. Bxb7 {[%clk 0:01:00]}  Ra7 {[%clk 0:01:01]} 23. Be4 {[%clk 0:00:55]}  f5 {[%clk 0:00:55]} 24. Bd3 {[%clk 0:00:30]}  Kh8 {[%clk 0:00:42]} 25. g3 {[%clk 0:00:29]}  Qd6 {[%clk 0:00:41]} 26. Rad1 {[%clk 0:00:27]}  Qc5 {[%clk 0:00:25]} 27. Nh4 {[%clk 0:00:20]}  Kh7 {[%clk 0:00:23]} 28. Kh2 {[%clk 0:00:19]}  e5 {[%clk 0:00:19]} 29. Bc2 {[%clk 0:00:14]}  Be6 {[%clk 0:00:18]} 30. b3 {[%clk 0:00:13]}  Rf6 {[%clk 0:00:16]} 31. Rd2 {[%clk 0:00:12]}  e4 {[%clk 0:00:14]} 32. c4 {[%clk 0:00:11]}  Be5 {[%clk 0:00:13]} 33. Rfd1 {[%clk 0:00:10]}  Raf7 {[%clk 0:00:11]} 34. Rd8 {[%clk 0:00:09]}  f4 {[%clk 0:00:09]} 35. Bxe4+ {[%clk 0:00:09]}  g6 {[%clk 0:00:05]} 36. Bd5 {[%clk 0:00:06]}  fxg3+ {[%clk 0:00:05]} 37. fxg3 {[%clk 0:00:06]}  Rf2+ {[%clk 0:00:05]} 38. Qxf2 {[%clk 0:00:06]}  Rxf2+ {[%clk 0:00:05]} 39. Kh1 {[%clk 0:00:06]}  Bxd5+ {[%clk 0:00:05]} 40. R8xd5 {[%clk 0:00:06]}  Qe3 {[%clk 0:00:03]} 41. Ng2 {[%clk 0:00:05]}  Qxg3 {[%clk 0:00:02]} 42. Rd7+ {[%clk 0:00:03]}  Bg7 {[%clk 0:00:02]} 43. R7d3 {[%clk 0:00:02]}  Qxg2# {[%clk 0:00:02]} 0-1

[Event "December 5 Early 2023"]
[Site "https://www.chess.com"]
[Date "2023.12.05"]
[Round "4"]
[White "Napoli, Nicolo"]
[Black "Villabrille, Roberto"]
[Result "1/2-1/2"]
[Board "196"]
[TimeControl "180+1"]
[WhiteFideId "813702"]
[BlackFideId "103942"]
[WhiteElo "2337"]
[BlackElo "1756"]
[WhiteTeam "ITA"]
[BlackTeam "ARG"]
[WhiteClock "0:00:08"]
[BlackClock "0:00:09"]

1. e4 {[%clk 0:02:58]}  d5 {[%clk 0:03:00]} 2. exd5 {[%clk 0:02:57]}  Qxd5 {[%clk 0:03:01]} 3. Nc3 {[%clk 0:02:57]}  Qd6 {[%clk 0:03:02]} 4. d4 {[%clk 0:02:56]}  Nf6 {[%clk 0:03:03]} 5. Nf3 {[%clk 0:02:55]}  Bg4 {[%clk 0:03:00]} 6. Be2 {[%clk 0:02:50]}  Nc6 {[%clk 0:02:59]} 7. O-O {[%clk 0:02:49]}  O-O-O {[%clk 0:02:59]} 8. Nb5 {[%clk 0:02:18]}  Qd7 {[%clk 0:02:54]} 9. c3 {[%clk 0:02:07]}  a6 {[%clk 0:02:53]} 10. Na3 {[%clk 0:02:06]}  e6 {[%clk 0:02:48]} 11. Nc4 {[%clk 0:02:05]}  Bd6 {[%clk 0:02:42]} 12. Be3 {[%clk 0:01:33]}  Nd5 {[%clk 0:02:19]} 13. Qd2 {[%clk 0:01:16]}  h5 {[%clk 0:02:16]} 14. a4 {[%clk 0:00:50]}  a5 {[%clk 0:02:08]} 15. Nfe5 {[%clk 0:00:17]}  Bxe5 {[%clk 0:01:59]} 16. Nxe5 {[%clk 0:00:14]}  Nxe5 {[%clk 0:01:56]} 17. dxe5 {[%clk 0:00:14]}  Nxe3 {[%clk 0:01:46]} 18. Qxe3 {[%clk 0:00:13]}  Bxe2 {[%clk 0:01:40]} 19. Qxe2 {[%clk 0:00:13]}  Qd3 {[%clk 0:01:38]} 20. Rfe1 {[%clk 0:00:05]}  Qxe2 {[%clk 0:01:26]} 21. Rxe2 {[%clk 0:00:05]}  Rd5 {[%clk 0:01:26]} 22. Kf1 {[%clk 0:00:04]}  Rhd8 {[%clk 0:01:26]} 23. Ke1 {[%clk 0:00:05]}  Rd3 {[%clk 0:01:23]} 24. Rb1 {[%clk 0:00:02]}  R3d7 {[%clk 0:01:24]} 25. b4 {[%clk 0:00:03]}  Rd5 {[%clk 0:01:25]} 26. c4 {[%clk 0:00:02]}  Rd4 {[%clk 0:01:24]} 27. bxa5 {[%clk 0:00:02]}  Rxc4 {[%clk 0:01:24]} 28. Reb2 {[%clk 0:00:03]}  b6 {[%clk 0:01:18]} 29. axb6 {[%clk 0:00:03]}  cxb6 {[%clk 0:01:19]} 30. Rxb6 {[%clk 0:00:03]}  Rxa4 {[%clk 0:01:19]} 31. Rb8+ {[%clk 0:00:03]}  Kd7 {[%clk 0:01:19]} 32. R1b7+ {[%clk 0:00:03]}  Kc6 {[%clk 0:01:19]} 33. Rb6+ {[%clk 0:00:02]}  Kc5 {[%clk 0:01:17]} 34. Rb5+ {[%clk 0:00:02]}  Kc4 {[%clk 0:01:16]} 35. Rxd8 {[%clk 0:00:02]}  Kxb5 {[%clk 0:01:16]} 36. Rd7 {[%clk 0:00:03]}  Re4+ {[%clk 0:01:15]} 37. Kf1 {[%clk 0:00:02]}  Rxe5 {[%clk 0:01:16]} 38. Rxf7 {[%clk 0:00:03]}  Rg5 {[%clk 0:01:14]} 39. Rd7 {[%clk 0:00:02]}  Kc5 {[%clk 0:01:13]} 40. g3 {[%clk 0:00:03]}  Kc6 {[%clk 0:01:12]} 41. Rd8 {[%clk 0:00:02]}  g6 {[%clk 0:01:12]} 42. Rc8+ {[%clk 0:00:02]}  Kd7 {[%clk 0:01:10]} 43. Rc1 {[%clk 0:00:03]}  Rd5 {[%clk 0:01:08]} 44. Kg2 {[%clk 0:00:04]}  Kd6 {[%clk 0:01:07]} 45. Ra1 {[%clk 0:00:04]}  Ke5 {[%clk 0:01:06]} 46. Ra7 {[%clk 0:00:04]}  Kf5 {[%clk 0:00:59]} 47. Rf7+ {[%clk 0:00:04]}  Ke5 {[%clk 0:00:58]} 48. h4 {[%clk 0:00:03]}  Rd2 {[%clk 0:00:52]} 49. Kf3 {[%clk 0:00:02]}  Rd3+ {[%clk 0:00:51]} 50. Ke2 {[%clk 0:00:03]}  Rc3 {[%clk 0:00:49]} 51. Rf8 {[%clk 0:00:01]}  Rc2+ {[%clk 0:00:48]} 52. Kf3 {[%clk 0:00:02]}  Rc3+ {[%clk 0:00:48]} 53. Kg2 {[%clk 0:00:02]}  Rc2 {[%clk 0:00:47]} 54. Rf3 {[%clk 0:00:03]}  Ke4 {[%clk 0:00:44]} 55. Re3+ {[%clk 0:00:02]}  Kf5 {[%clk 0:00:42]} 56. Rf3+ {[%clk 0:00:03]}  Ke5 {[%clk 0:00:41]} 57. Rf4 {[%clk 0:00:04]}  Rc3 {[%clk 0:00:39]} 58. Kh3 {[%clk 0:00:02]}  Rc2 {[%clk 0:00:38]} 59. Kg2 {[%clk 0:00:01]}  Rc3 {[%clk 0:00:37]} 60. f3 {[%clk 0:00:02]}  Rc2+ {[%clk 0:00:36]} 61. Kh3 {[%clk 0:00:02]}  Rf2 {[%clk 0:00:33]} 62. Re4+ {[%clk 0:00:02]}  Kf6 {[%clk 0:00:31]} 63. Rf4+ {[%clk 0:00:02]}  Ke5 {[%clk 0:00:28]} 64. Re4+ {[%clk 0:00:02]}  Kf6 {[%clk 0:00:28]} 65. g4 {[%clk 0:00:02]}  Rxf3+ {[%clk 0:00:23]} 66. Kg2 {[%clk 0:00:03]}  hxg4 {[%clk 0:00:22]} 67. Rxg4 {[%clk 0:00:02]}  Rf5 {[%clk 0:00:20]} 68. Rg3 {[%clk 0:00:02]}  e5 {[%clk 0:00:19]} 69. Re3 {[%clk 0:00:03]}  Ke6 {[%clk 0:00:18]} 70. Kg3 {[%clk 0:00:03]}  Kd5 {[%clk 0:00:17]} 71. Ra3 {[%clk 0:00:04]}  Rf6 {[%clk 0:00:16]} 72. Ra5+ {[%clk 0:00:04]}  Kd4 {[%clk 0:00:15]} 73. Ra4+ {[%clk 0:00:04]}  Kd5 {[%clk 0:00:15]} 74. Ra5+ {[%clk 0:00:05]}  Ke6 {[%clk 0:00:15]} 75. Ra6+ {[%clk 0:00:05]}  Kf5 {[%clk 0:00:16]} 76. Ra4 {[%clk 0:00:05]}  e4 {[%clk 0:00:14]} 77. Ra5+ {[%clk 0:00:05]}  Ke6 {[%clk 0:00:14]} 78. Ra6+ {[%clk 0:00:05]}  Ke5 {[%clk 0:00:14]} 79. Ra5+ {[%clk 0:00:06]}  Kd4 {[%clk 0:00:13]} 80. Ra4+ {[%clk 0:00:06]}  Kd3 {[%clk 0:00:14]} 81. Ra3+ {[%clk 0:00:06]}  Ke2 {[%clk 0:00:13]} 82. Ra2+ {[%clk 0:00:07]}  Ke3 {[%clk 0:00:13]} 83. Ra3+ {[%clk 0:00:07]}  Kd2 {[%clk 0:00:13]} 84. Ra4 {[%clk 0:00:07]}  e3 {[%clk 0:00:11]} 85. Ra2+ {[%clk 0:00:07]}  Kd3 {[%clk 0:00:10]} 86. Ra3+ {[%clk 0:00:08]}  Ke2 {[%clk 0:00:09]} 87. Ra2+ {[%clk 0:00:08]}  Kf1 {[%clk 0:00:08]} 88. Ra1+ {[%clk 0:00:06]}  Ke2 {[%clk 0:00:09]} 89. Ra2+ {[%clk 0:00:07]}  Kd3 {[%clk 0:00:09]} 90. Ra3+ {[%clk 0:00:07]}  Kd2 {[%clk 0:00:09]} 91. Ra2+ {[%clk 0:00:08]}  Kc3 {[%clk 0:00:09]} 92. Ra3+ {[%clk 0:00:07]}  Kd2 {[%clk 0:00:09]} 93. Ra2+ {[%clk 0:00:08]} 1/2-1/2

[Event "December 5 Early 2023"]
[Site "https://www.chess.com"]
[Date "2023.12.05"]
[Round "4"]
[White "Bold, Andre"]
[Black "Ernst, Luca"]
[Result "1-0"]
[Board "199"]
[TimeControl "180+1"]
[WhiteFideId "16208471"]
[BlackFideId "45117055"]
[WhiteElo "2483"]
[BlackElo "2249"]
[WhiteTeam "GER"]
[BlackTeam "FRA"]
[WhiteClock "0:01:09"]
[BlackClock "0:00:02"]

1. Nf3 {[%clk 0:03:00]}  Nf6 {[%clk 0:03:00]} 2. e3 {[%clk 0:03:01]}  e6 {[%clk 0:03:00]} 3. b3 {[%clk 0:03:00]}  c5 {[%clk 0:02:56]} 4. Bb2 {[%clk 0:03:00]}  Nc6 {[%clk 0:02:57]} 5. Be2 {[%clk 0:03:00]}  Be7 {[%clk 0:02:56]} 6. O-O {[%clk 0:03:01]}  d6 {[%clk 0:02:54]} 7. d4 {[%clk 0:03:00]}  O-O {[%clk 0:02:47]} 8. c4 {[%clk 0:02:59]}  cxd4 {[%clk 0:02:41]} 9. exd4 {[%clk 0:02:59]}  d5 {[%clk 0:02:41]} 10. c5 {[%clk 0:02:56]}  b6 {[%clk 0:02:40]} 11. cxb6 {[%clk 0:02:52]}  axb6 {[%clk 0:02:40]} 12. Nbd2 {[%clk 0:02:49]}  Bd6 {[%clk 0:02:31]} 13. Ne5 {[%clk 0:02:45]}  Bd7 {[%clk 0:02:06]} 14. Ndf3 {[%clk 0:02:45]}  Ne4 {[%clk 0:02:00]} 15. Bd3 {[%clk 0:02:42]}  f6 {[%clk 0:01:41]} 16. Nxc6 {[%clk 0:02:39]}  Bxc6 {[%clk 0:01:31]} 17. Qe2 {[%clk 0:02:38]}  Qe8 {[%clk 0:01:15]} 18. a4 {[%clk 0:02:37]}  Qh5 {[%clk 0:01:10]} 19. Rfc1 {[%clk 0:02:30]}  Bb7 {[%clk 0:00:58]} 20. h3 {[%clk 0:02:27]}  Rfc8 {[%clk 0:00:46]} 21. Rxc8+ {[%clk 0:02:23]}  Rxc8 {[%clk 0:00:47]} 22. Rc1 {[%clk 0:02:24]}  Qe8 {[%clk 0:00:39]} 23. Bb5 {[%clk 0:02:17]}  Qd8 {[%clk 0:00:36]} 24. Qd1 {[%clk 0:02:09]}  Bf4 {[%clk 0:00:35]} 25. Rxc8 {[%clk 0:02:08]}  Qxc8 {[%clk 0:00:36]} 26. Bd3 {[%clk 0:02:01]}  Nd6 {[%clk 0:00:32]} 27. g3 {[%clk 0:02:00]}  Bh6 {[%clk 0:00:30]} 28. Qc2 {[%clk 0:01:59]}  g6 {[%clk 0:00:22]} 29. Qxc8+ {[%clk 0:01:56]}  Bxc8 {[%clk 0:00:23]} 30. h4 {[%clk 0:01:52]}  Kf7 {[%clk 0:00:22]} 31. Kf1 {[%clk 0:01:52]}  Bf8 {[%clk 0:00:22]} 32. Ke2 {[%clk 0:01:50]}  Bd7 {[%clk 0:00:20]} 33. Bc2 {[%clk 0:01:47]}  Nb7 {[%clk 0:00:20]} 34. Bc3 {[%clk 0:01:46]}  Na5 {[%clk 0:00:15]} 35. Ne1 {[%clk 0:01:45]}  Bd6 {[%clk 0:00:12]} 36. Nd3 {[%clk 0:01:44]}  Ke7 {[%clk 0:00:11]} 37. Nb2 {[%clk 0:01:40]}  Nc6 {[%clk 0:00:09]} 38. Nd3 {[%clk 0:01:36]}  e5 {[%clk 0:00:08]} 39. b4 {[%clk 0:01:27]}  e4 {[%clk 0:00:07]} 40. Nf4 {[%clk 0:01:22]}  Be6 {[%clk 0:00:04]} 41. b5 {[%clk 0:01:16]}  Nb8 {[%clk 0:00:01]} 42. Bb3 {[%clk 0:01:15]}  Bxf4 {[%clk 0:00:01]} 43. gxf4 {[%clk 0:01:16]}  Kd6 {[%clk 0:00:02]} 44. f3 {[%clk 0:01:16]}  f5 {[%clk 0:00:01]} 45. fxe4 {[%clk 0:01:15]}  fxe4 {[%clk 0:00:02]} 46. Ke3 {[%clk 0:01:15]}  Kd7 {[%clk 0:00:03]} 47. a5 {[%clk 0:01:11]}  Kc7 {[%clk 0:00:03]} 48. a6 {[%clk 0:01:11]}  Bd7 {[%clk 0:00:03]} 49. a7 {[%clk 0:01:08]}  Kb7 {[%clk 0:00:03]} 50. axb8=Q+ {[%clk 0:01:08]}  Kxb8 {[%clk 0:00:04]} 51. Bxd5 {[%clk 0:01:08]}  Bxb5 {[%clk 0:00:02]} 52. Bxe4 {[%clk 0:01:09]} 1-0